fUSD/lending_fUSD_20240329
["ID","MTS","AMOUNT","RATE_DAILY","PERIOD"]
[320899853,1711674641629,-500.0,0.00049315,120]
[320899854,1711674641638,-500.0,0.00049315,120]
[320899855,1711674641648,-870.74,0.00049315,120]
[320899856,1711674641657,-507.75028116,0.00049315,120]
[320899857,1711674641667,-500.0,0.00049315,120]
[320899858,1711674641676,-1520.89,0.00049315,120]
[320899859,1711674641685,-500.0,0.00049315,120]
[320899860,1711674641694,-500.0,0.00049315,120]
[320899861,1711674641705,-500.0,0.00049315,120]
[320899862,1711674641715,-759.63,0.00049315,120]
[320899863,1711674641724,-500.0,0.00049315,120]
[320899864,1711674641734,-1416.79,0.00049315,120]
[320899865,1711674641743,-500.0,0.00049315,120]
[320899866,1711674641753,-3175.93,0.00049315,120]
[320899867,1711674641762,-507.1634014,0.00049315,120]
[320899868,1711674641773,-500.0,0.00049315,120]
[320899869,1711674641783,-1032.6,0.00049315,120]
[320899870,1711674641793,-690.23,0.00049315,120]
[320899871,1711674641803,-500.0,0.00049315,120]
[320899872,1711674641813,-500.0,0.00049315,120]
[320899873,1711674641823,-500.0,0.00049315,120]
[320899874,1711674641833,-500.0,0.00049315,120]
[320899875,1711674641844,-774.75,0.00049315,120]
[320899876,1711674641853,-500.0,0.00049315,120]
[320899877,1711674641863,-500.0,0.00049315,120]
[320899878,1711674641873,-500.0,0.00049315,120]
[320899879,1711674641883,-500.0,0.00049315,120]
[320899880,1711674641892,-500.0,0.00049315,120]
[320899881,1711674641902,-1159.76,0.00049315,120]
[320899882,1711674641912,-500.0,0.00049315,120]
[320899883,1711674641922,-500.0,0.00049315,120]
[320899884,1711674641933,-766.36,0.00049315,120]
[320899885,1711674641944,-500.0,0.00049315,120]
[320899886,1711674641953,-2278.26,0.00049315,120]
[320899887,1711674641963,-500.0,0.00049315,120]
[320899888,1711674641974,-500.0,0.00049315,120]
[320899889,1711674641984,-500.0,0.00049315,120]
[320899890,1711674641995,-674.03,0.00049315,120]
[320899891,1711674642005,-500.0,0.00049315,120]
[320899892,1711674642016,-835.2,0.00049315,120]
[320899893,1711674642026,-863.55,0.00049315,120]
[320899894,1711674642036,-500.0,0.00049315,120]
[320899895,1711674642047,-500.0,0.00049315,120]
[320899896,1711674642057,-500.0,0.00049315,120]
[320899897,1711674642068,-500.0,0.00049315,120]
[320899898,1711674642080,-500.0,0.00049315,120]
[320899899,1711674642089,-521.18,0.00049315,120]
[320899900,1711674642100,-500.0,0.00049315,120]
[320899901,1711674642109,-1096.47,0.00049315,120]
[320899902,1711674642119,-500.0,0.00049315,120]
[320899903,1711674642130,-500.0,0.00049315,120]
[320899904,1711674642141,-500.0,0.00049315,120]
[320899905,1711674642151,-514.92382077,0.00049315,120]
[320899906,1711674642161,-500.0,0.00049315,120]
[320899907,1711674642172,-768.72,0.00049315,120]
[320899908,1711674642182,-500.0,0.00049315,120]
[320899909,1711674642192,-504.61041729,0.00049315,120]
[320899910,1711674642204,-596.49,0.00049315,120]
[320899911,1711674642214,-500.0,0.00049315,120]
[320899912,1711674642226,-500.0,0.00049315,120]
[320899913,1711674642236,-500.0,0.00049315,120]
[320899914,1711674642246,-500.0,0.00049315,120]
[320899915,1711674642257,-500.0,0.00049315,120]
[320899916,1711674642268,-500.0,0.00049315,120]
[320899917,1711674642278,-500.0,0.00049315,120]
[320899918,1711674642289,-1486.78,0.00049315,120]
[320899919,1711674642299,-500.0,0.00049315,120]
[320899920,1711674642311,-500.0,0.00049315,120]
[320899921,1711674642321,-1728.86,0.00049315,120]
[320899922,1711674642330,-507.02741871,0.00049315,120]
[320899923,1711674642340,-500.0,0.00049315,120]
[320899924,1711674642352,-1142.69,0.00049315,120]
[320899925,1711674642361,-505.74336,0.00049315,120]
[320899926,1711674642372,-500.0,0.00049315,120]
[320899927,1711674642383,-500.0,0.00049315,120]
[320899928,1711674642393,-510.48078272,0.00049315,120]
[320899929,1711674642403,-500.0,0.00049315,120]
[320899930,1711674642413,-743.8,0.00049315,120]
[320899931,1711674642423,-294.45858966,0.00049315,120]
[320899932,1711674642434,-500.0,0.00049315,120]
[320899933,1711674642445,-500.0,0.00049315,120]
[320899934,1711674642455,-500.0,0.00049315,120]
[320899935,1711674642465,-854.64,0.00049315,120]
[320899936,1711674642475,-500.0,0.00049315,120]
[320899937,1711674642485,-500.0,0.00049315,120]
[320899938,1711674642495,-500.0,0.00049315,120]
[320899939,1711674642505,-500.0,0.00049315,120]
[320899940,1711674642516,-500.0,0.00049315,2]
[320899941,1711674642529,-274.08,0.00049315,120]
[320899942,1711674642538,-500.0,0.00049315,120]
[320899943,1711674642548,-500.0,0.00049315,120]
[320899944,1711674642557,-1549.22,0.00049315,120]
[320899945,1711674642567,-500.0,0.00049315,120]
[320899946,1711674642576,-1266.87,0.00049315,120]
[320899947,1711674642586,-500.0,0.00049315,120]
[320899948,1711674642595,-500.0,0.00049315,120]
[320899949,1711674642605,-500.0,0.00049315,7]
[320899950,1711674642614,-500.0,0.00049315,120]
[320899951,1711674642624,-500.0,0.00049315,120]
[320899952,1711674642634,-500.0,0.00049315,120]
[320899953,1711674642643,-500.0,0.00049315,120]
[320899954,1711674642653,-766.4,0.00049315,120]
[320899955,1711674642662,-500.0,0.00049315,120]
[320899956,1711674642671,-500.0,0.00049315,120]
[320899957,1711674642681,-896.02,0.00049315,120]
[320899958,1711674642690,-1000.0,0.00049315,120]
[320899959,1711674642700,-1000.0,0.00049315,120]
[320899960,1711674642710,-500.59498734,0.00049315,120]
[320899961,1711674642719,-165.96539817,0.0004937,120]
[320899962,1711674642729,-165.96539819,0.0004937,120]
[320899963,1711674642738,-500.0,0.00049492,120]
[320899964,1711674642747,-1038.676794,0.00049493,30]
[320899965,1711674642757,-150.41922891,0.00049507,30]
[320899966,1711674642767,-1000.0,0.00049588,60]
[320899967,1711674642777,-500.0,0.00049588,120]
[320899968,1711674642786,-461.28,0.00049589,120]
[320899969,1711674642795,-500.0,0.00049589,120]
[320899970,1711674642804,-500.0,0.00049589,120]
[320899971,1711674642813,-500.0,0.00049589,120]
[320899972,1711674642823,-500.0,0.00049589,120]
[320899973,1711674642832,-500.0,0.00049589,120]
[320899974,1711674642841,-500.0,0.00049589,120]
[320899975,1711674642851,-500.0,0.00049589,120]
[320899976,1711674642860,-500.0,0.00049589,120]
[320899977,1711674642869,-500.0,0.00049589,120]
[320899978,1711674642878,-500.0,0.00049589,120]
[320899979,1711674642888,-432.83,0.00049589,120]
[320899980,1711674642897,-500.0,0.00049589,120]
[320899981,1711674642906,-260.04,0.00049589,120]
[320899982,1711674642916,-500.0,0.00049589,120]
[320899983,1711674642926,-500.0,0.00049589,120]
[320899984,1711674642935,-715.96,0.00049589,120]
[320899985,1711674642944,-500.0,0.00049589,120]
[320899986,1711674642954,-500.0,0.00049589,120]
[320899987,1711674642963,-455.94,0.00049589,120]
[320899988,1711674642972,-500.0,0.00049589,120]
[320899990,1711674642981,-500.0,0.00049589,120]
[320899993,1711674642991,-500.0,0.00049589,120]
[320899996,1711674643000,-500.0,0.00049589,120]
[320899999,1711674643010,-539.63,0.00049589,120]
[320900001,1711674643020,-500.0,0.00049589,120]
[320900002,1711674643029,-500.0,0.00049589,120]
[320900003,1711674643038,-500.0,0.00049589,120]
[320900004,1711674643047,-500.0,0.00049589,120]
[320900005,1711674643057,-483.98,0.00049589,120]
[320900006,1711674643066,-564.11280203,0.00049589,120]
[320900007,1711674643075,-549.75,0.00049589,120]
[320900009,1711674643084,-561.43,0.00049589,120]
[320900010,1711674643093,-500.0,0.00049589,120]
[320900011,1711674643102,-500.0,0.00049589,120]
[320900012,1711674643111,-500.0,0.00049589,120]
[320900013,1711674643121,-500.0,0.00049589,120]
[320900014,1711674643130,-500.0,0.00049589,120]
[320900015,1711674643139,-500.0,0.00049589,120]
[320900016,1711674643149,-500.0,0.00049589,120]
[320900017,1711674643158,-500.0,0.00049589,120]
[320900018,1711674643167,-500.0,0.00049589,120]
[320900019,1711674643176,-500.0,0.00049589,120]
[320900020,1711674643186,-500.0,0.00049589,30]
[320900021,1711674643195,-500.0,0.00049589,120]
[320900022,1711674643204,-500.0,0.00049589,2]
[320900023,1711674643214,-246.63649674,0.00049589,120]
[320900024,1711674643223,-273.73576483,0.00049589,120]
[320900025,1711674643233,-500.0,0.00049589,120]
[320900026,1711674643242,-500.0,0.00049589,120]
[320900027,1711674643251,-500.0,0.00049589,120]
[320900028,1711674643261,-500.0,0.00049589,120]
[320900029,1711674643273,-500.0,0.00049589,120]
[320900030,1711674643282,-500.0,0.00049589,120]
[320900031,1711674643291,-500.0,0.00049589,120]
[320900032,1711674643301,-500.0,0.00049589,120]
[320900033,1711674643311,-500.0,0.00049589,120]
[320900034,1711674643320,-500.0,0.00049589,120]
[320900035,1711674643330,-500.0,0.00049589,120]
[320900036,1711674643340,-500.0,0.00049589,120]
[320900037,1711674643349,-500.0,0.00049589,120]
[320900038,1711674643359,-500.0,0.00049589,120]
[320900039,1711674643371,-500.0,0.00049589,120]
[320900040,1711674643381,-700.54,0.00049589,120]
[320900041,1711674643391,-500.0,0.00049589,120]
[320900042,1711674643402,-500.0,0.00049589,120]
[320900043,1711674643411,-500.0,0.00049589,120]
[320900044,1711674643420,-500.0,0.00049589,120]
[320900045,1711674643430,-500.0,0.00049589,120]
[320900046,1711674643440,-500.0,0.00049589,120]
[320900047,1711674643451,-500.0,0.00049589,120]
[320900048,1711674643460,-500.0,0.00049589,120]
[320900049,1711674643470,-500.0,0.00049589,120]
[320900050,1711674643479,-524.69,0.00049589,120]
[320900051,1711674643488,-500.0,0.00049589,2]
[320900052,1711674643498,-500.0,0.00049589,120]
[320900053,1711674643508,-500.0,0.00049589,120]
[320900054,1711674643519,-150.0,0.00049589,120]
[320900055,1711674643529,-500.0,0.00049589,120]
[320900056,1711674643539,-500.0,0.00049589,120]
[320900057,1711674643548,-500.0,0.00049589,120]
[320900058,1711674643558,-500.0,0.00049589,120]
[320900059,1711674643568,-500.0,0.00049589,120]
[320900060,1711674643577,-500.0,0.00049589,120]
[320900061,1711674643587,-500.0,0.00049589,120]
[320900063,1711674643598,-500.0,0.00049589,120]
[320900065,1711674643607,-500.0,0.00049589,120]
[320900067,1711674643617,-500.0,0.00049589,120]
[320900069,1711674643626,-500.0,0.00049589,120]
[320900071,1711674643635,-500.0,0.00049589,120]
[320900073,1711674643645,-500.0,0.00049589,120]
[320900075,1711674643654,-500.0,0.00049589,120]
[320900077,1711674643664,-500.0,0.00049589,120]
[320900079,1711674643673,-500.0,0.00049589,120]
[320900081,1711674643682,-500.0,0.00049589,120]
[320900083,1711674643692,-500.0,0.00049589,120]
[320900085,1711674643701,-500.14,0.00049589,120]
[320900087,1711674643711,-500.0,0.00049589,120]
[320900089,1711674643720,-500.0,0.00049589,7]
[320900091,1711674643730,-500.0,0.00049589,120]
[320900093,1711674643739,-500.0,0.00049589,120]
[320900095,1711674643749,-463.06,0.00049589,120]
[320900097,1711674643759,-500.0,0.00049589,120]
[320900099,1711674643770,-500.0,0.00049589,120]
[320900101,1711674643779,-369.70834819,0.00049589,120]
[320900103,1711674643789,-510.95,0.00049589,120]
[320900104,1711674643798,-500.0,0.00049589,120]
[320900105,1711674643808,-500.0,0.00049589,120]
[320900106,1711674643818,-500.0,0.00049589,120]
[320900107,1711674643828,-500.0,0.00049589,120]
[320900108,1711674643837,-512.46811759,0.00049589,120]
[320900109,1711674643847,-230.53432124,0.00049589,120]
[320900110,1711674643857,-720.55,0.00049589,120]
[320900111,1711674643867,-500.0,0.00049589,120]
[320900112,1711674643877,-500.0,0.00049589,120]
[320900113,1711674643888,-806.48,0.00049589,120]
[320900114,1711674643898,-500.0,0.00049589,120]
[320900115,1711674643909,-692.98,0.00049589,120]
[320900116,1711674643919,-537.0,0.00049589,120]
[320900117,1711674643930,-2384.98,0.00049589,120]
[320900118,1711674643940,-871.28,0.00049589,120]
[320900119,1711674643951,-500.0,0.00049589,120]
[320900120,1711674643961,-831.92,0.00049589,120]
[320900121,1711674643972,-500.0,0.00049589,120]
[320900122,1711674643983,-500.0,0.00049589,120]
[320900123,1711674643992,-500.0,0.00049589,120]
[320900124,1711674644004,-858.44,0.00049589,120]
[320900125,1711674644014,-586.62,0.00049589,120]
[320900126,1711674644029,-847.84,0.00049589,120]
[320900127,1711674644039,-528.87,0.00049589,120]
[320900128,1711674644050,-500.0,0.00049589,120]
[320900129,1711674644060,-1101.29,0.00049589,120]
[320900130,1711674644070,-500.0,0.00049589,120]
[320900131,1711674644079,-500.0,0.00049589,120]
[320900132,1711674644090,-719.38,0.00049589,120]
[320900133,1711674644101,-707.18,0.00049589,120]
[320900134,1711674644111,-1828.24,0.00049589,120]
[320900135,1711674644121,-500.0,0.00049589,120]
[320900136,1711674644132,-551.44,0.00049589,120]
[320900137,1711674644143,-500.0,0.00049589,120]
[320900138,1711674644154,-1056.38,0.00049589,120]
[320900139,1711674644349,-524.71,0.00049589,120]
[320900140,1711674644364,-1515.54,0.00049589,120]
[320900141,1711674644373,-500.0,0.00049589,120]
[320900142,1711674644383,-500.0,0.00049589,120]
[320900143,1711674644391,-760.54,0.00049589,120]
[320900144,1711674644402,-500.0,0.00049589,120]
[320900145,1711674644411,-491.51,0.00049589,120]
[320900146,1711674644421,-500.0,0.00049589,120]
[320900147,1711674644430,-545.6,0.00049589,120]
[320900148,1711674644440,-672.41,0.00049589,120]
[320900149,1711674644449,-500.0,0.00049589,120]
[320900150,1711674644458,-555.79,0.00049589,120]
[320900151,1711674644467,-547.52,0.00049589,120]
[320900152,1711674644477,-1258.62,0.00049589,120]
[320900153,1711674644486,-538.2,0.00049589,120]
[320900154,1711674644496,-1258.62,0.00049589,120]
[320900155,1711674644505,-1258.62,0.00049589,120]
[320900156,1711674644515,-1258.62,0.00049589,120]
[320900157,1711674644525,-1258.62,0.00049589,120]
[320900158,1711674644535,-886.13,0.00049589,120]
[320900159,1711674644544,-500.0,0.00049589,120]
[320900160,1711674644554,-170.32,0.00049589,120]
[320900161,1711674644564,-3559.67,0.00049589,120]
[320900162,1711674644573,-746.2,0.00049589,120]
[320900163,1711674644583,-500.0,0.00049589,120]
[320900164,1711674644592,-1179.4,0.00049589,120]
[320900165,1711674644601,-1120.67,0.00049589,120]
[320900166,1711674644611,-500.0,0.00049589,120]
[320900167,1711674644620,-500.0,0.00049589,120]
[320900168,1711674644630,-500.0,0.00049589,120]
[320900169,1711674644639,-500.0,0.00049589,120]
[320900170,1711674644649,-676.64,0.00049589,120]
[320900171,1711674644658,-500.0,0.00049589,120]
[320900172,1711674644668,-500.0,0.00049589,80]
[320900173,1711674644677,-5225.03,0.00049589,120]
[320900174,1711674644686,-1486.6,0.00049589,120]
[320900175,1711674644696,-1272.92,0.00049589,120]
[320900176,1711674644706,-506.12,0.00049589,120]
[320900177,1711674644715,-500.0,0.00049589,120]
[320900178,1711674644725,-500.0,0.00049589,60]
[320900179,1711674644734,-500.0,0.00049589,120]
[320900180,1711674644744,-1279.62,0.00049589,120]
[320900181,1711674644754,-7295.51,0.00049589,120]
[320900182,1711674644763,-500.0,0.00049589,120]
[320900183,1711674644775,-500.0,0.00049589,120]
[320900184,1711674644785,-925.43,0.00049589,120]
[320900185,1711674644796,-805.94,0.00049589,120]
[320900186,1711674644805,-500.0,0.00049589,120]
[320900187,1711674644814,-500.0,0.00049589,120]
[320900188,1711674644824,-500.0,0.00049589,120]
[320900189,1711674644833,-1150.04,0.00049589,120]
[320900190,1711674644843,-500.0,0.00049589,120]
[320900191,1711674644853,-1286.63,0.00049589,120]
[320900192,1711674644862,-500.0,0.00049589,120]
[320900193,1711674644871,-500.0,0.00049589,120]
[320900194,1711674644881,-500.0,0.00049589,120]
[320900195,1711674644890,-500.0,0.00049589,120]
[320900196,1711674644899,-2193.94,0.00049589,120]
[320900197,1711674644909,-1199.85,0.00049589,120]
[320900198,1711674644918,-204.48,0.00049589,120]
[320900199,1711674644928,-701.7,0.00049589,120]
[320900200,1711674644937,-500.0,0.00049589,120]
[320900201,1711674644947,-500.0,0.00049589,120]
[320900202,1711674644956,-873.0,0.00049589,120]
[320900203,1711674644966,-1100.19,0.00049589,120]
[320900204,1711674644976,-500.0,0.00049589,120]
[320900205,1711674644985,-500.0,0.00049589,120]
[320900206,1711674644995,-1119.97,0.00049589,120]
[320900207,1711674645004,-2066.94,0.00049589,120]
[320900208,1711674645014,-530.83,0.00049589,120]
[320900209,1711674645025,-500.0,0.00049589,120]
[320900210,1711674645035,-944.45,0.00049589,120]
[320900211,1711674645045,-500.0,0.00049589,120]
[320900212,1711674645054,-8655.36,0.00049589,120]
[320900213,1711674645063,-596.55,0.00049589,120]
[320900214,1711674645073,-778.6,0.00049589,120]
[320900215,1711674645082,-4199.62,0.00049589,120]
[320900216,1711674645092,-909.75,0.00049589,120]
[320900217,1711674645101,-500.0,0.00049589,120]
[320900218,1711674645111,-797.67,0.00049589,120]
[320900219,1711674645121,-268.54,0.00049589,120]
[320900220,1711674645130,-693.18,0.00049589,120]
[320900221,1711674645140,-770.83,0.00049589,120]
[320900222,1711674645150,-492.53019922,0.00049589,120]
[320900223,1711674645159,-935.85,0.00049589,120]
[320900224,1711674645169,-315.82,0.00049589,120]
[320900225,1711674645178,-533.89,0.00049589,120]
[320900226,1711674645187,-500.0,0.00049589,120]
[320900227,1711674645197,-1349.77,0.00049589,120]
[320900228,1711674645207,-678.83,0.00049589,120]
[320900229,1711674645216,-610.84,0.00049589,120]
[320900230,1711674645225,-500.0,0.00049589,120]
[320900231,1711674645235,-501.74,0.00049589,120]
[320900232,1711674645244,-1537.52,0.00049589,120]
[320900233,1711674645253,-408.6,0.00049589,120]
[320900234,1711674645263,-613.11,0.00049589,120]
[320900235,1711674645274,-890.86,0.00049589,120]
[320900236,1711674645283,-917.25,0.00049589,120]
[320900237,1711674645293,-857.63,0.00049589,120]
[320900238,1711674645302,-680.72,0.00049589,120]
[320900239,1711674645311,-639.76,0.00049589,120]
[320900240,1711674645320,-500.0,0.00049589,120]
[320900241,1711674645330,-578.0,0.00049589,120]
[320900242,1711674645339,-500.0,0.00049589,120]
[320900243,1711674645348,-699.95,0.00049589,120]
[320900244,1711674645361,-1142.33,0.00049589,21]
[320900245,1711674645370,-3688.6,0.00049589,120]
[320900246,1711674645379,-500.0,0.00049589,120]
[320900247,1711674645389,-500.0,0.00049589,120]
[320900248,1711674645400,-556.77,0.00049589,120]
[320900249,1711674645410,-2645.48,0.00049589,120]
[320900250,1711674645420,-500.0,0.00049589,120]
[320900251,1711674645430,-1022.63,0.00049589,120]
[320900252,1711674645442,-500.0,0.00049589,120]
[320900253,1711674645452,-500.0,0.00049589,120]
[320900254,1711674645461,-953.05,0.00049589,120]
[320900255,1711674645471,-2912.06,0.00049589,120]
[320900256,1711674645481,-804.79,0.00049589,120]
[320900257,1711674645491,-500.0,0.00049589,120]
[320900258,1711674645500,-1330.28,0.00049589,120]
[320900259,1711674645510,-500.0,0.00049589,120]
[320900260,1711674645522,-513.43517926,0.00049589,120]
[320900261,1711674645532,-870.74,0.00049589,120]
[320900262,1711674645541,-1520.89,0.00049589,120]
[320900263,1711674645551,-759.63,0.00049589,120]
[320900264,1711674645562,-1416.79,0.00049589,120]
[320900265,1711674645571,-161.7,0.00049589,120]
[320900266,1711674645580,-3175.93,0.00049589,120]
[320900267,1711674645590,-1032.6,0.00049589,120]
[320900268,1711674645599,-690.23,0.00049589,120]
[320900269,1711674645609,-500.0,0.00049589,120]
[320900270,1711674645619,-500.0,0.00049589,120]
[320900271,1711674645628,-500.0,0.00049589,120]
[320900272,1711674645638,-774.75,0.00049589,120]
[320900273,1711674645648,-500.0,0.00049589,120]
[320900274,1711674645658,-500.0,0.00049589,120]
[320900275,1711674645667,-605.71,0.00049589,120]
[320900276,1711674645678,-1159.76,0.00049589,120]
[320900277,1711674645687,-766.36,0.00049589,120]
[320900278,1711674645697,-508.69498406,0.00049589,120]
[320900279,1711674645707,-2278.26,0.00049589,120]
[320900280,1711674645716,-500.0,0.00049589,120]
[320900281,1711674645726,-320.60127598,0.00049589,120]
[320900282,1711674645735,-674.03,0.00049589,120]
[320900283,1711674645745,-863.55,0.00049589,120]
[320900284,1711674645754,-835.2,0.00049589,120]
[320900285,1711674645764,-500.0,0.00049589,120]
[320900286,1711674645775,-190.73397316,0.00049589,120]
[320900287,1711674645784,-500.0,0.00049589,120]
[320900288,1711674645794,-1096.47,0.00049589,120]
[320900289,1711674645803,-500.0,0.00049589,120]
[320900290,1711674645813,-768.72,0.00049589,120]
[320900291,1711674645822,-596.49,0.00049589,120]
[320900292,1711674645832,-500.0,0.00049589,120]
[320900293,1711674645841,-500.0,0.00049589,120]
[320900294,1711674645851,-500.0,0.00049589,120]
[320900295,1711674645860,-500.0,0.00049589,120]
[320900296,1711674645870,-500.0,0.00049589,120]
[320900297,1711674645879,-1486.78,0.00049589,120]
[320900298,1711674645889,-1728.86,0.00049589,120]
[320900299,1711674645899,-1142.69,0.00049589,120]
[320900300,1711674645908,-500.0,0.00049589,120]
[320900301,1711674645917,-500.0,0.00049589,120]
[320900302,1711674645926,-743.8,0.00049589,120]
[320900303,1711674645936,-500.0,0.00049589,120]
[320900304,1711674645945,-854.64,0.00049589,120]
[320900305,1711674645954,-476.67677592,0.00049589,120]
[320900306,1711674645964,-500.0,0.00049589,120]
[320900307,1711674645974,-1549.22,0.00049589,120]
[320900308,1711674645983,-2900.95,0.00049589,120]
[320900309,1711674645993,-2900.95,0.00049589,120]
[320900311,1711674646002,-2900.95,0.00049589,120]
[320900313,1711674646012,-1266.87,0.00049589,120]
[320900315,1711674646022,-500.0,0.00049589,120]
[320900316,1711674646031,-500.0,0.00049589,120]
[320900317,1711674646040,-500.0,0.00049589,120]
[320900318,1711674646050,-500.0,0.00049589,120]
[320900319,1711674646060,-1541.57492357,0.00049763,26]
[320900320,1711674646070,-151.0,0.00049779,2]
[320900321,1711674646080,-1258.62,0.00049799,120]
[320900322,1711674646089,-302.42222222,0.00049808,120]
[320900323,1711674646099,-1258.62,0.00049862,120]
[320900324,1711674646109,-500.0,0.00049862,120]
[320900325,1711674646118,-500.0,0.00049862,120]
[320900326,1711674646128,-2900.95,0.00049862,120]
[320900327,1711674646138,-519.0,0.00049863,60]
[320900328,1711674646147,-500.0,0.00049863,120]
[320900329,1711674646156,-500.0,0.00049863,120]
[320900330,1711674646166,-500.0,0.00049863,120]
[320900331,1711674646175,-500.0,0.00049863,120]
[320900332,1711674646184,-500.0,0.00049863,120]
[320900333,1711674646193,-500.0,0.00049863,120]
[320900334,1711674646203,-500.0,0.00049863,120]
[320900335,1711674646212,-500.0,0.00049863,120]
[320900336,1711674646221,-715.96,0.00049863,120]
[320900337,1711674646230,-500.0,0.00049863,120]
[320900338,1711674646239,-500.0,0.00049863,120]
[320900339,1711674646248,-500.0,0.00049863,120]
[320900340,1711674646257,-500.0,0.00049863,120]
[320900341,1711674646266,-500.0,0.00049863,120]
[320900342,1711674646276,-539.63,0.00049863,120]
[320900343,1711674646285,-500.0,0.00049863,120]
[320900344,1711674646294,-396.38,0.00049863,120]
[320900345,1711674646303,-500.0,0.00049863,120]
[320900346,1711674646313,-500.0,0.00049863,120]
[320900347,1711674646322,-549.75,0.00049863,120]
[320900348,1711674646331,-561.43,0.00049863,120]
[320900349,1711674646347,-500.0,0.00049863,120]
[320900350,1711674646358,-500.0,0.00049863,120]
[320900351,1711674646368,-500.0,0.00049863,120]
[320900352,1711674646378,-500.0,0.00049863,120]
[320900353,1711674646387,-500.0,0.00049863,120]
[320900354,1711674646396,-500.0,0.00049863,120]
[320900355,1711674646406,-500.0,0.00049863,120]
[320900356,1711674646415,-500.0,0.00049863,120]
[320900357,1711674646424,-500.0,0.00049863,120]
[320900358,1711674646434,-500.0,0.00049863,120]
[320900359,1711674646443,-500.0,0.00049863,30]
[320900360,1711674646452,-500.0,0.00049863,120]
[320900361,1711674646462,-500.0,0.00049863,2]
[320900362,1711674646471,-500.0,0.00049863,120]
[320900363,1711674646481,-500.0,0.00049863,120]
[320900364,1711674646490,-500.0,0.00049863,120]
[320900365,1711674646500,-500.0,0.00049863,120]
[320900366,1711674646510,-500.0,0.00049863,120]
[320900367,1711674646520,-500.0,0.00049863,120]
[320900368,1711674646529,-500.0,0.00049863,120]
[320900369,1711674646538,-500.0,0.00049863,120]
[320900370,1711674646547,-468.18451605,0.00049863,120]
[320900372,1711674646556,-500.0,0.00049863,120]
[320900373,1711674646565,-500.0,0.00049863,120]
[320900374,1711674646573,-500.0,0.00049863,120]
[320900375,1711674646582,-500.0,0.00049863,120]
[320900376,1711674646592,-500.0,0.00049863,120]
[320900377,1711674646602,-700.54,0.00049863,120]
[320900379,1711674646611,-500.0,0.00049863,120]
[320900380,1711674646660,-500.0,0.00049863,120]
[320900381,1711674646670,-500.0,0.00049863,120]
[320900382,1711674646678,-500.0,0.00049863,120]
[320900383,1711674646689,-500.0,0.00049863,120]
[320900384,1711674646698,-375.54071579,0.00049863,120]
[320900385,1711674646707,-500.0,0.00049863,120]
[320900386,1711674646717,-500.0,0.00049863,120]
[320900387,1711674646726,-524.69,0.00049863,120]